[Event "27th OIBM 2024"]
[Site "Gmund am Tegernsee"]
[Date "2024.10.29"]
[Round "4.33"]
[White "Dotzer, Lukas"]
[Black "Waldschmidt, Georg"]
[Result "1-0"]
[ECO "C81"]
[WhiteElo "2407"]
[BlackElo "2122"]
[Annotator "RC"]
[PlyCount "69"]
[EventDate "2024.09.16"]
[EventType "swiss"]
[EventCountry "GER"]
[SourceTitle "playchess.com"]
[Source "ChessBase"]
[SourceQuality "1"]
[TimeControl "40/5400+30:1800+30"]

1. e4 {[%emt 0:00:02]} e5 {[%emt 0:00:35]} 2. Nf3 {[%emt 0:00:06]} Nc6 {[%emt 0:00:08]} 3. Bb5 {[%emt 0:00:06]} a6 {[%emt 0:00:08]} 4. Ba4 {[%emt 0:00:04]} Nf6 {[%emt 0:00:22]} 5. O-O {[%emt 0:00:18]} Nxe4 {[%emt 0:00:12]} 6. d4 {[%emt 0:00:16]} b5 {[%emt 0:00:12]} 7. Bb3 {[%emt 0:00:05]} d5 {[%emt 0:00:09]} 8. dxe5 {[%emt 0:00:05]} Be6 {[%emt 0:00:19]} 9. Qe2 {[%emt 0:00:45]} Be7 {[%emt 0:00:46]} 10. Rd1 {[%emt 0:00:19]} Nc5 {[%emt 0:01:38]} 11. Be3 {[%emt 0:07:32]} O-O {[%emt 0:14:13]} 12. Nbd2 {[%emt 0:13:59]} Qd7 {[%emt 0:32:38]} 13. Bxc5 {[%emt 0:17:24]} Bxc5 {[%emt 0:00:10]} 14. Ne4 {[%emt 0:08:14]} Bb6 {[%emt 0:02:37]} 15. c3 {[%emt 0:01:18]} Rad8 {[%emt 0:05:33]} 16. Bc2 {[%emt 0:11:30]} Qe7 {[%emt 0:02:12]} 17. Neg5 {[%emt 0:05:38]} g6 {[%emt 0:37:08]} 18. a4 {[%emt 0:08:17]} h6 {[%emt 0:00:00]} 19. Nxe6 {[%emt 0:02:27]} Qxe6 {[%emt 0:00:00]} 20. Re1 {[%emt 0:02:11]} d4 {[%emt 0:00:00]} 21. axb5 {[%emt 0:02:52]} axb5 {[%emt 0:00:00]} 22. Qxb5 {[%emt 0:00:25]} Ne7 {[%emt 0:00:00]} 23. cxd4 {[%emt 0:10:10]} Bxd4 {[%emt 0:00:00]} 24. Nxd4 {[%emt 0:00:45]} Rxd4 {[%emt 0:00:00]} 25. Bb3 {[%emt 0:00:25]} Qf5 {[%emt 0:00:00]} 26. Rad1 {[%emt 0:00:58]} Rxd1 {[%emt 0:00:00]} 27. Rxd1 {[%emt 0:00:28]} c6 {[%emt 0:00:00]} 28. Qc5 {[%emt 0:03:30]} Re8 {[%emt 0:00:00]} 29. h3 {[%emt 0:01:39]} Kg7 {[%emt 0:00:00]} 30. Qc3 {[%emt 0:00:37]} Kg8 {[%emt 0:06:30]} 31. Rd6 {[%emt 0:00:30]} Ra8 {[%emt 0:00:00]} 32. Rf6 {[%emt 0:00:29]} Qb1+ {[%emt 0:00:00]} 33. Kh2 {[%emt 0:00:05]} Rf8 {[%emt 0:00:00]} 34. e6 {[%emt 0:00:56]} Qe4 {[%emt 0:00:00]} 35. Rxf7 {[%emt 0:00:33]} 1-0

[Event "27th OIBM 2024"]
[Site "Gmund am Tegernsee"]
[Date "2024.10.29"]
[Round "4.35"]
[White "Beikert, Guenther"]
[Black "Tillmann, Markus"]
[Result "1-0"]
[ECO "B25"]
[WhiteElo "2365"]
[BlackElo "2120"]
[Annotator "RC"]
[PlyCount "125"]
[EventDate "2024.09.16"]
[EventType "swiss"]
[EventCountry "GER"]
[SourceTitle "playchess.com"]
[Source "ChessBase"]
[SourceQuality "1"]
[TimeControl "40/5400+30:1800+30"]

1. e4 {[%emt 0:05:44]} c5 {[%emt 0:00:12]} 2. d3 {[%emt 0:01:09]} g6 {[%emt 0:01:30]} 3. g3 {[%emt 0:00:21]} Bg7 {[%emt 0:00:25]} 4. Bg2 {[%emt 0:00:08]} Nc6 {[%emt 0:01:23]} 5. f4 {[%emt 0:00:17]} d6 {[%emt 0:00:38]} 6. Nf3 {[%emt 0:00:35]} Nf6 {[%emt 0:00:41]} 7. O-O {[%emt 0:00:34]} O-O {[%emt 0:00:08]} 8. Nc3 {[%emt 0:03:42]} Rb8 {[%emt 0:00:18]} 9. h3 {[%emt 0:01:09]} b5 {[%emt 0:01:17]} 10. a3 {[%emt 0:00:20]} Bd7 {[%emt 0:01:55]} 11. Be3 {[%emt 0:01:48]} Ne8 {[%emt 0:00:48]} 12. Qd2 {[%emt 0:09:08]} Nc7 {[%emt 0:01:24]} 13. d4 {[%emt 0:04:25]} cxd4 {[%emt 0:17:39]} 14. Nxd4 {[%emt 0:00:42]} Na5 {[%emt 0:03:18]} 15. b3 {[%emt 0:00:42]} a6 {[%emt 0:02:50]} 16. f5 {[%emt 0:05:17]} Nc6 {[%emt 0:01:36]} 17. Nxc6 {[%emt 0:01:46]} Bxc6 {[%emt 0:00:06]} 18. Bd4 {[%emt 0:00:14]} e5 {[%emt 0:09:25]} 19. Be3 {[%emt 0:02:45]} Qe7 {[%emt 0:07:08]} 20. g4 {[%emt 0:06:59]} f6 {[%emt 0:01:10]} 21. Rad1 {[%emt 0:02:05]} Rbd8 {[%emt 0:05:11]} 22. h4 {[%emt 0:01:17]} gxf5 {[%emt 0:01:33]} 23. exf5 {[%emt 0:02:03]} d5 {[%emt 0:02:07]} 24. b4 {[%emt 0:01:02]} Qe8 {[%emt 0:00:50]} 25. Bb6 {[%emt 0:00:23]} Rf7 {[%emt 0:01:07]} 26. Ne4 {[%emt 0:02:30]} d4 {[%emt 0:06:52]} 27. g5 {[%emt 0:06:03]} Kh8 {[%emt 0:02:02]} 28. Qe2 {[%emt 0:12:08]} Bxe4 {[%emt 0:03:21]} 29. Bxe4 {[%emt 0:01:26]} Nd5 {[%emt 0:00:13]} 30. Bxd8 {[%emt 0:00:33]} Qxd8 {[%emt 0:00:48]} 31. Qf3 {[%emt 0:07:04]} Nf4 {[%emt 0:00:39]} 32. Qg4 {[%emt 0:00:31]} Rc7 {[%emt 0:00:30]} 33. Rxf4 {[%emt 0:00:15]} exf4 {[%emt 0:00:06]} 34. Qxf4 {[%emt 0:00:20]} Rd7 {[%emt 0:03:25]} 35. Rd2 {[%emt 0:01:21]} Bf8 {[%emt 0:01:08]} 36. Rg2 {[%emt 0:03:08]} Bd6 {[%emt 0:01:33]} 37. Qf3 {[%emt 0:01:28]} Be5 {[%emt 0:00:20]} 38. Bd3 {[%emt 0:02:19]} Qc8 {[%emt 0:02:08]} 39. Re2 {[%emt 0:03:02]} Re7 {[%emt 0:03:32]} 40. Kf1 {[%emt 0:01:49]} Qe8 {[%emt 0:01:36]} 41. Qd5 {[%emt 0:31:55]} Kg7 {[%emt 0:31:55]} 42. Qf3 {[%emt 0:03:10]} h6 {[%emt 0:02:55]} 43. Qg4 {[%emt 0:03:05]} Kh7 {[%emt 0:05:21]} 44. gxf6 {[%emt 0:00:00]} Bxf6 {[%emt 0:00:00]} 45. Rxe7+ {[%emt 0:00:00]} Qxe7 {[%emt 0:00:00]} 46. Qg6+ {[%emt 0:00:00]} Kh8 {[%emt 0:00:00]} 47. Qxh6+ {[%emt 0:00:00]} Kg8 {[%emt 0:00:00]} 48. Qg6+ {[%emt 0:00:00]} Kf8 {[%emt 0:00:00]} 49. h5 {[%emt 0:00:00]} Qe5 {[%emt 0:00:00]} 50. Qg4 {[%emt 0:00:00]} Qe3 {[%emt 0:00:00]} 51. Be4 {[%emt 0:00:00]} Bg5 {[%emt 0:00:00]} 52. Kg2 {[%emt 0:00:00]} Bf4 {[%emt 0:00:00]} 53. Qf3 {[%emt 0:00:00]} Qc1 {[%emt 0:00:00]} 54. Kh3 {[%emt 0:00:00]} Qd2 {[%emt 0:00:00]} 55. f6 {[%emt 0:00:00]} Qh2+ {[%emt 0:00:00]} 56. Kg4 {[%emt 0:00:00]} Be3 {[%emt 0:00:00]} 57. Bg6 {[%emt 0:00:00]} Qb8 {[%emt 0:00:00]} 58. Qe4 {[%emt 0:00:00]} Qc8+ {[%emt 0:00:00]} 59. Bf5 {[%emt 0:00:00]} Qc7 {[%emt 0:00:00]} 60. Be6 {[%emt 0:00:00]} Qb8 {[%emt 0:00:00]} 61. Kf5 {[%emt 0:00:00]} Qa7 {[%emt 0:00:00]} 62. Kg6 {[%emt 0:00:00]} Qb8 {[%emt 0:00:00]} 63. Bf7 {[%emt 0:15:18]} 1-0

[Event "27th OIBM 2024"]
[Site "Gmund am Tegernsee"]
[Date "2024.10.29"]
[Round "4.36"]
[White "Frischmann, Rick"]
[Black "Boehmer, Christian"]
[Result "1-0"]
[ECO "C02"]
[WhiteElo "2355"]
[BlackElo "2112"]
[Annotator "RC"]
[PlyCount "45"]
[EventDate "2024.09.16"]
[EventType "swiss"]
[EventCountry "GER"]
[SourceTitle "playchess.com"]
[Source "ChessBase"]
[SourceQuality "1"]
[TimeControl "40/5400+30:1800+30"]

1. e4 {[%emt 0:00:04]} e6 {[%emt 0:02:23]} 2. d4 {[%emt 0:00:21]} d5 {[%emt 0:00:05]} 3. e5 {[%emt 0:00:44]} c5 {[%emt 0:01:00]} 4. c3 {[%emt 0:00:06]} Qb6 {[%emt 0:00:52]} 5. Nf3 {[%emt 0:00:07]} Bd7 {[%emt 0:00:33]} 6. Bd3 {[%emt 0:03:34]} Bb5 {[%emt 0:01:25]} 7. dxc5 {[%emt 0:01:11]} Bxc5 {[%emt 0:00:58]} 8. b4 {[%emt 0:00:16]} Bxd3 {[%emt 0:04:59]} 9. Qxd3 {[%emt 0:01:18]} Be7 {[%emt 0:02:58]} 10. Na3 {[%emt 0:04:11]} Nc6 {[%emt 0:13:07]} 11. O-O {[%emt 0:01:26]} Nh6 {[%emt 0:02:31]} 12. Be3 {[%emt 0:04:16]} Qc7 {[%emt 0:03:20]} 13. Nb5 {[%emt 0:00:45]} Qb8 {[%emt 0:00:22]} 14. Bxh6 {[%emt 0:01:29]} gxh6 {[%emt 0:00:07]} 15. Qe3 {[%emt 0:14:56]} Bf8 {[%emt 0:06:21]} 16. Rae1 {[%emt 0:02:50]} a6 {[%emt 0:02:47]} 17. Nbd4 {[%emt 0:01:42]} Qc7 {[%emt 0:02:52]} 18. Nxc6 {[%emt 0:00:08]} Qxc6 {[%emt 0:00:10]} 19. Nd4 {[%emt 0:00:06]} Qc4 {[%emt 0:04:45]} 20. f4 {[%emt 0:00:05]} Be7 {[%emt 0:09:07]} 21. f5 {[%emt 0:07:03]} O-O-O {[%emt 0:01:22]} 22. fxe6 {[%emt 0:00:27]} fxe6 {[%emt 0:00:06]} 23. Nxe6 {[%emt 0:03:24]} 1-0

[Event "27th OIBM 2024"]
[Site "Gmund am Tegernsee"]
[Date "2024.10.29"]
[Round "4.37"]
[White "Rey Malde, Henrique"]
[Black "Becker, Matthias"]
[Result "1/2-1/2"]
[ECO "B06"]
[WhiteElo "2118"]
[BlackElo "2338"]
[Annotator "RC"]
[PlyCount "173"]
[EventDate "2024.09.16"]
[EventType "swiss"]
[EventCountry "GER"]
[SourceTitle "playchess.com"]
[Source "ChessBase"]
[SourceQuality "1"]
[TimeControl "40/5400+30:1800+30"]

1. e4 {[%emt 0:00:04]} g6 {[%emt 0:01:06]} 2. d4 {[%emt 0:00:09]} Bg7 {[%emt 0:01:05]} 3. c3 {[%emt 0:00:17]} d5 {[%emt 0:05:56]} 4. e5 {[%emt 0:02:38]} c5 {[%emt 0:00:22]} 5. h3 {[%emt 0:03:04]} Nc6 {[%emt 0:00:29]} 6. Nf3 {[%emt 0:00:19]} Qb6 {[%emt 0:13:22]} 7. Be2 {[%emt 0:10:12]} e6 {[%emt 0:06:22]} 8. O-O {[%emt 0:01:21]} Nge7 {[%emt 0:00:09]} 9. Na3 {[%emt 0:00:52]} cxd4 {[%emt 0:01:36]} 10. cxd4 {[%emt 0:00:25]} Bd7 {[%emt 0:01:28]} 11. Nc2 {[%emt 0:01:47]} Rc8 {[%emt 0:01:36]} 12. b4 {[%emt 0:15:47]} Nxb4 {[%emt 0:13:43]} 13. Nxb4 {[%emt 0:00:41]} Qxb4 {[%emt 0:00:07]} 14. a4 {[%emt 0:08:57]} Nc6 {[%emt 0:04:33]} 15. a5 {[%emt 0:03:14]} a6 {[%emt 0:05:40]} 16. Qd3 {[%emt 0:11:47]} Na7 {[%emt 0:13:50]} 17. Ba3 {[%emt 0:11:13]} Qc3 {[%emt 0:00:52]} 18. Qb1 {[%emt 0:00:32]} Qc7 {[%emt 0:20:34]} 19. Bd6 {[%emt 0:02:27]} Qc6 {[%emt 0:00:01]} 20. Qb2 {[%emt 0:03:34]} Bh6 {[%emt 0:00:07]} 21. Rfb1 {[%emt 0:12:03]} Nb5 {[%emt 0:00:15]} 22. Bxb5 {[%emt 0:00:25]} axb5 {[%emt 0:08:17]} 23. Ne1 {[%emt 0:01:18]} Bf8 {[%emt 0:00:00]} 24. Rc1 {[%emt 0:02:31]} Qa6 {[%emt 0:00:00]} 25. Rxc8+ {[%emt 0:02:18]} Bxc8 {[%emt 0:00:00]} 26. Bxf8 {[%emt 0:00:45]} Kxf8 {[%emt 0:00:00]} 27. Nd3 {[%emt 0:01:55]} Kg7 {[%emt 0:00:00]} 28. Nc5 {[%emt 0:01:26]} Qc6 {[%emt 0:00:00]} 29. Rc1 {[%emt 0:00:50]} Bd7 {[%emt 0:01:59]} 30. Na4 {[%emt 0:01:09]} bxa4 {[%emt 0:00:56]} 31. Rxc6 {[%emt 0:00:06]} Bxc6 {[%emt 0:00:04]} 32. Qb4 {[%emt 0:00:33]} Ra8 {[%emt 0:00:33]} 33. Kh2 {[%emt 0:01:09]} Ra6 {[%emt 0:01:15]} 34. h4 {[%emt 0:00:43]} a3 {[%emt 0:00:29]} 35. Qxa3 {[%emt 0:00:19]} b6 {[%emt 0:00:20]} 36. Qe7 {[%emt 0:00:57]} bxa5 {[%emt 0:00:20]} 37. Qf6+ {[%emt 0:00:28]} Kg8 {[%emt 0:00:11]} 38. Qd8+ {[%emt 0:00:40]} Kg7 {[%emt 0:00:01]} 39. Qf6+ {[%emt 0:00:04]} Kf8 {[%emt 0:01:24]} 40. Qd8+ {[%emt 0:00:15]} Kg7 {[%emt 0:00:47]} 41. g4 {[%emt 0:14:04]} Bb5 {[%emt 0:10:42]} 42. h5 {[%emt 0:02:15]} gxh5 {[%emt 0:00:16]} 43. gxh5 {[%emt 0:00:27]} Bd3 {[%emt 0:04:53]} 44. Kg3 {[%emt 0:05:16]} Ra7 {[%emt 0:05:03]} 45. Qb8 {[%emt 0:06:08]} Rd7 {[%emt 0:00:27]} 46. Qa8 {[%emt 0:01:46]} h6 {[%emt 0:00:37]} 47. Qxa5 {[%emt 0:00:11]} Bf5 {[%emt 0:00:28]} 48. Qb6 {[%emt 0:01:10]} Re7 {[%emt 0:00:19]} 49. Qb8 {[%emt 0:00:17]} Rd7 {[%emt 0:00:12]} 50. f3 {[%emt 0:00:12]} Bh7 {[%emt 0:06:00]} 51. Kf2 {[%emt 0:00:18]} Bf5 {[%emt 0:00:07]} 52. Ke3 {[%emt 0:00:03]} Bh7 {[%emt 0:00:15]} 53. Kd2 {[%emt 0:00:10]} Bf5 {[%emt 0:00:29]} 54. Kc3 {[%emt 0:00:41]} f6 {[%emt 0:02:06]} 55. exf6+ {[%emt 0:03:40]} Kxf6 {[%emt 0:00:06]} 56. Qg8 {[%emt 0:01:51]} Rc7+ {[%emt 0:03:31]} 57. Kd2 {[%emt 0:00:02]} Rc2+ {[%emt 0:03:07]} 58. Ke3 {[%emt 0:00:01]} Ke7 {[%emt 0:00:08]} 59. Qg7+ {[%emt 0:00:25]} Kd6 {[%emt 0:00:04]} 60. Qf8+ {[%emt 0:00:23]} Kc6 {[%emt 0:00:07]} 61. Qxh6 {[%emt 0:00:49]} Rh2 {[%emt 0:01:41]} 62. Qg5 {[%emt 0:00:48]} Rh3 {[%emt 0:00:26]} 63. Kf2 {[%emt 0:00:13]} Rh1 {[%emt 0:00:32]} 64. Kg2 {[%emt 0:00:22]} Rb1 {[%emt 0:00:23]} 65. h6 {[%emt 0:00:23]} Rb7 {[%emt 0:00:06]} 66. Kg3 {[%emt 0:00:55]} Kb5 {[%emt 0:00:45]} 67. Kf4 {[%emt 0:00:18]} Kc4 {[%emt 0:00:11]} 68. Ke5 {[%emt 0:00:38]} Kd3 {[%emt 0:00:44]} 69. Qg1 {[%emt 0:01:12]} Rh7 {[%emt 0:00:29]} 70. Qc1 {[%emt 0:00:32]} Rh8 {[%emt 0:00:18]} 71. Kf4 {[%emt 0:00:17]} Rxh6 {[%emt 0:00:34]} 72. Qe3+ {[%emt 0:00:48]} Kc4 {[%emt 0:00:07]} 73. Ke5 {[%emt 0:00:25]} Rh3 {[%emt 0:00:17]} 74. Qe2+ {[%emt 0:00:39]} Kc3 {[%emt 0:00:10]} 75. Qe3+ {[%emt 0:00:27]} Kc4 {[%emt 0:00:03]} 76. Qa3 {[%emt 0:00:37]} Rh7 {[%emt 0:00:59]} 77. Qc5+ {[%emt 0:00:26]} Kd3 {[%emt 0:00:04]} 78. Qa3+ {[%emt 0:00:11]} Ke2 {[%emt 0:01:21]} 79. f4 {[%emt 0:00:49]} Rh3 {[%emt 0:00:18]} 80. Qb2+ {[%emt 0:00:13]} Kd3 {[%emt 0:00:07]} 81. Qb1+ {[%emt 0:00:31]} Kd2 {[%emt 0:00:24]} 82. Qb4+ {[%emt 0:00:44]} Kd3 {[%emt 0:00:03]} 83. Qb1+ {[%emt 0:00:32]} Ke2 {[%emt 0:00:45]} 84. Qb2+ {[%emt 0:00:15]} Kf3 {[%emt 0:01:23]} 85. Qb3+ {[%emt 0:00:20]} Ke2 {[%emt 0:00:29]} 86. Qb2+ {[%emt 0:00:17]} Kd3 {[%emt 0:00:06]} 87. Qb1+ {[%emt 0:00:09]} 1/2-1/2

[Event "27th OIBM 2024"]
[Site "Gmund am Tegernsee"]
[Date "2024.10.29"]
[Round "4.38"]
[White "Weber, Ulrich"]
[Black "Kannenberg, Karl-Heinz"]
[Result "1-0"]
[ECO "A07"]
[WhiteElo "2334"]
[BlackElo "2111"]
[Annotator "RC"]
[PlyCount "81"]
[EventDate "2024.09.16"]
[EventType "swiss"]
[EventCountry "GER"]
[SourceTitle "playchess.com"]
[Source "ChessBase"]
[SourceQuality "1"]
[TimeControl "40/5400+30:1800+30"]

1. Nf3 {[%emt 0:00:01]} d5 {[%emt 0:00:17]} 2. g3 {[%emt 0:00:05]} c6 {[%emt 0:00:24]} 3. Bg2 {[%emt 0:00:20]} Bg4 {[%emt 0:00:34]} 4. d3 {[%emt 0:00:08]} e6 {[%emt 0:00:57]} 5. O-O {[%emt 0:02:07]} Bd6 {[%emt 0:00:22]} 6. e4 {[%emt 0:02:39]} Nd7 {[%emt 0:01:25]} 7. h3 {[%emt 0:00:45]} Bh5 {[%emt 0:02:09]} 8. Nc3 {[%emt 0:05:49]} Ne7 {[%emt 0:04:03]} 9. Ne2 {[%emt 0:07:59]} dxe4 {[%emt 0:19:44]} 10. dxe4 {[%emt 0:00:31]} Bxf3 {[%emt 0:12:11]} 11. Bxf3 {[%emt 0:00:54]} Ne5 {[%emt 0:00:24]} 12. Bg2 {[%emt 0:00:20]} Bc5 {[%emt 0:02:12]} 13. Qe1 {[%emt 0:01:27]} Bb6 {[%emt 0:12:50]} 14. Qc3 {[%emt 0:04:42]} Qc7 {[%emt 0:07:36]} 15. a4 {[%emt 0:00:32]} a5 {[%emt 0:02:58]} 16. b3 {[%emt 0:22:01]} Rd8 {[%emt 0:12:37]} 17. Ba3 {[%emt 0:08:01]} f6 {[%emt 0:04:29]} 18. Rfd1 {[%emt 0:05:42]} Kf7 {[%emt 0:01:28]} 19. Kf1 {[%emt 0:02:08]} Rxd1+ {[%emt 0:00:36]} 20. Rxd1 {[%emt 0:00:12]} Rd8 {[%emt 0:00:08]} 21. Rxd8 {[%emt 0:03:30]} Qxd8 {[%emt 0:00:09]} 22. Ke1 {[%emt 0:00:23]} Qd7 {[%emt 0:06:31]} 23. f4 {[%emt 0:04:12]} N5g6 {[%emt 0:00:18]} 24. Bf3 {[%emt 0:01:42]} Nf8 {[%emt 0:01:16]} 25. Bh5+ {[%emt 0:03:53]} Kg8 {[%emt 0:03:03]} 26. Bg4 {[%emt 0:00:57]} Nfg6 {[%emt 0:01:28]} 27. Qc4 {[%emt 0:01:09]} Nf8 {[%emt 0:00:40]} 28. f5 {[%emt 0:05:54]} Kh8 {[%emt 0:00:14]} 29. fxe6 {[%emt 0:00:08]} Qd8 {[%emt 0:00:08]} 30. Nf4 {[%emt 0:03:22]} g6 {[%emt 0:01:17]} 31. Bb2 {[%emt 0:01:55]} Kg7 {[%emt 0:00:28]} 32. h4 {[%emt 0:03:47]} Qd6 {[%emt 0:00:57]} 33. Qc3 {[%emt 0:02:56]} Ng8 {[%emt 0:00:14]} 34. e5 {[%emt 0:00:38]} Qe7 {[%emt 0:01:59]} 35. exf6+ {[%emt 0:00:06]} Nxf6 {[%emt 0:00:18]} 36. Kf1 {[%emt 0:02:31]} Bd8 {[%emt 0:00:28]} 37. Qe5 {[%emt 0:01:20]} Bc7 {[%emt 0:00:25]} 38. Qe3 {[%emt 0:01:44]} Kg8 {[%emt 0:00:48]} 39. Bh3 {[%emt 0:00:18]} Bd6 {[%emt 0:00:47]} 40. Kg2 {[%emt 0:02:46]} Bc7 {[%emt 0:00:30]} 41. Bxf6 {[%emt 0:30:39]} 1-0

[Event "27th OIBM 2024"]
[Site "Gmund am Tegernsee"]
[Date "2024.10.29"]
[Round "4.39"]
[White "van der Valk, Niklas"]
[Black "Zude, Arno"]
[Result "0-1"]
[ECO "C79"]
[WhiteElo "2114"]
[BlackElo "2332"]
[Annotator "RC"]
[PlyCount "84"]
[EventDate "2024.09.16"]
[EventType "swiss"]
[EventCountry "GER"]
[SourceTitle "playchess.com"]
[Source "ChessBase"]
[SourceQuality "1"]
[TimeControl "40/5400+30:1800+30"]

1. e4 {[%emt 0:00:04]} e5 {[%emt 0:00:08]} 2. Nf3 {[%emt 0:00:05]} Nc6 {[%emt 0:00:10]} 3. Bb5 {[%emt 0:00:07]} a6 {[%emt 0:00:10]} 4. Ba4 {[%emt 0:00:06]} Nf6 {[%emt 0:00:06]} 5. O-O {[%emt 0:00:19]} d6 {[%emt 0:00:28]} 6. Re1 {[%emt 0:06:04]} Bd7 {[%emt 0:00:39]} 7. c3 {[%emt 0:02:55]} g6 {[%emt 0:00:37]} 8. d4 {[%emt 0:00:42]} Bg7 {[%emt 0:00:41]} 9. Bc2 {[%emt 0:02:28]} O-O {[%emt 0:00:23]} 10. h3 {[%emt 0:04:45]} Nh5 {[%emt 0:03:43]} 11. a4 {[%emt 0:00:58]} Qe8 {[%emt 0:02:43]} 12. Na3 {[%emt 0:00:21]} f5 {[%emt 0:01:54]} 13. Nc4 {[%emt 0:00:35]} fxe4 {[%emt 0:01:22]} 14. Rxe4 {[%emt 0:00:04]} Bf5 {[%emt 0:02:00]} 15. Bb3 {[%emt 0:02:15]} d5 {[%emt 0:01:20]} 16. Rxe5 {[%emt 0:00:07]} Nxe5 {[%emt 0:00:14]} 17. Ncxe5 {[%emt 0:00:07]} Be6 {[%emt 0:00:43]} 18. Bd2 {[%emt 0:09:39]} Nf6 {[%emt 0:01:46]} 19. Ng5 {[%emt 0:11:07]} Ne4 {[%emt 0:06:02]} 20. Nxe6 {[%emt 0:09:11]} Qxe6 {[%emt 0:00:05]} 21. Be3 {[%emt 0:02:40]} c5 {[%emt 0:17:26]} 22. Qg4 {[%emt 0:09:41]} Rf5 {[%emt 0:14:27]} 23. Qxe4 {[%emt 0:03:40]} c4 {[%emt 0:00:10]} 24. Bxc4 {[%emt 0:02:00]} dxc4 {[%emt 0:00:09]} 25. Qxb7 {[%emt 0:01:47]} Re8 {[%emt 0:00:41]} 26. f4 {[%emt 0:07:29]} Rff8 {[%emt 0:10:53]} 27. Qe4 {[%emt 0:13:57]} Bxe5 {[%emt 0:09:45]} 28. dxe5 {[%emt 0:05:16]} Rb8 {[%emt 0:00:33]} 29. Rd1 {[%emt 0:01:23]} Rfd8 {[%emt 0:01:02]} 30. Rf1 {[%emt 0:01:00]} Qd5 {[%emt 0:01:18]} 31. Qxd5+ {[%emt 0:01:15]} Rxd5 {[%emt 0:00:02]} 32. Bd4 {[%emt 0:00:56]} Rxb2 {[%emt 0:00:35]} 33. Re1 {[%emt 0:02:07]} Kf7 {[%emt 0:02:11]} 34. g4 {[%emt 0:00:09]} Ke6 {[%emt 0:13:16]} 35. Rf1 {[%emt 0:00:02]} Rd8 {[%emt 0:00:13]} 36. f5+ {[%emt 0:00:49]} gxf5 {[%emt 0:00:06]} 37. gxf5+ {[%emt 0:00:05]} Kd5 {[%emt 0:00:06]} 38. Re1 {[%emt 0:02:21]} Rg8+ {[%emt 0:00:48]} 39. Kh1 {[%emt 0:00:51]} Rgg2 {[%emt 0:05:01]} 40. f6 {[%emt 0:00:26]} Ke6 {[%emt 0:00:50]} 41. Re3 {[%emt 0:13:30]} Rh2+ {[%emt 0:00:26]} 42. Kg1 {[%emt 0:00:03]} Rhe2 {[%emt 0:00:46]} 0-1

[Event "27th OIBM 2024"]
[Site "Gmund am Tegernsee"]
[Date "2024.10.29"]
[Round "4.40"]
[White "Ramme, Christoph"]
[Black "Goh, Zi Han"]
[Result "1/2-1/2"]
[ECO "E92"]
[WhiteElo "2110"]
[BlackElo "2319"]
[Annotator "RC"]
[PlyCount "59"]
[EventDate "2024.09.16"]
[EventType "swiss"]
[EventCountry "GER"]
[SourceTitle "playchess.com"]
[Source "ChessBase"]
[SourceQuality "1"]
[TimeControl "40/5400+30:1800+30"]

1. d4 {[%emt 0:00:01]} Nf6 {[%emt 0:00:56]} 2. c4 {[%emt 0:00:08]} g6 {[%emt 0:00:17]} 3. Nc3 {[%emt 0:00:10]} Bg7 {[%emt 0:00:24]} 4. e4 {[%emt 0:00:09]} d6 {[%emt 0:00:15]} 5. Nf3 {[%emt 0:00:18]} O-O {[%emt 0:00:17]} 6. Be2 {[%emt 0:00:09]} e5 {[%emt 0:00:22]} 7. Be3 {[%emt 0:01:00]} h6 {[%emt 0:01:01]} 8. O-O {[%emt 0:05:21]} Ng4 {[%emt 0:01:07]} 9. Bc1 {[%emt 0:00:45]} Nd7 {[%emt 0:00:50]} 10. h3 {[%emt 0:04:29]} exd4 {[%emt 0:00:27]} 11. Nxd4 {[%emt 0:00:47]} Ngf6 {[%emt 0:00:11]} 12. Re1 {[%emt 0:08:00]} Re8 {[%emt 0:02:20]} 13. Bf3 {[%emt 0:01:36]} Ne5 {[%emt 0:02:00]} 14. Be2 {[%emt 0:01:18]} Nc6 {[%emt 0:08:18]} 15. Nxc6 {[%emt 0:01:46]} bxc6 {[%emt 0:00:06]} 16. Bd3 {[%emt 0:12:38]} Nd7 {[%emt 0:04:28]} 17. Be3 {[%emt 0:06:37]} Nc5 {[%emt 0:19:44]} 18. f3 {[%emt 0:14:05]} Rb8 {[%emt 0:13:01]} 19. Rb1 {[%emt 0:04:05]} Rxb2 {[%emt 0:08:05]} 20. Rxb2 {[%emt 0:00:27]} Bxc3 {[%emt 0:00:05]} 21. Ree2 {[%emt 0:02:11]} Bxb2 {[%emt 0:00:12]} 22. Rxb2 {[%emt 0:00:07]} Qf6 {[%emt 0:08:44]} 23. Rc2 {[%emt 0:05:38]} Be6 {[%emt 0:03:25]} 24. Bf1 {[%emt 0:02:30]} Rb8 {[%emt 0:03:37]} 25. Qd2 {[%emt 0:01:59]} Rb1 {[%emt 0:03:38]} 26. Bd4 {[%emt 0:03:19]} Qh4 {[%emt 0:06:50]} 27. Bf2 {[%emt 0:06:34]} Qf6 {[%emt 0:01:32]} 28. Bd4 {[%emt 0:00:09]} Qg5 {[%emt 0:05:13]} 29. Be3 {[%emt 0:00:22]} Qf6 {[%emt 0:01:03]} 30. Bd4 {[%emt 0:18:52]} 1/2-1/2